bitfinex/quotes_BTCUSD_20240820
["timestamp","ask_amount","ask_price","bid_price","bid_amount"]
[1724155875242,0.00062675,60711.0,60710.0,5.20830244]
[1724155875687,0.00062675,60711.0,60710.0,5.47185044]
[1724155878163,0.00062675,60711.0,60710.0,5.20830244]
[1724155879477,0.00062675,60711.0,60710.0,5.20804544]
[1724155880773,0.00062675,60711.0,60710.0,5.47159344]
[1724155881018,0.00062675,60711.0,60710.0,5.20804544]
[1724155881624,0.00062675,60711.0,60710.0,5.47159344]
[1724155881844,0.00062675,60711.0,60710.0,5.20804544]
[1724155882056,0.00062675,60711.0,60710.0,4.50804544]
[1724155882748,0.00062675,60711.0,60710.0,4.02244544]
[1724155882958,0.00062675,60711.0,60710.0,4.13442337]
[1724155883385,0.00062675,60711.0,60710.0,4.48442337]
[1724155884046,0.00062675,60711.0,60710.0,4.50742337]
[1724155885773,0.00062675,60711.0,60710.0,4.68325543]
[1724155885983,0.000825,60715.0,60714.0,1.709715]
[1724155886197,0.000825,60715.0,60714.0,3.13896355]
[1724155886400,0.000825,60715.0,60714.0,3.04068351]
[1724155886615,0.000825,60715.0,60714.0,3.04012325]
[1724155886818,0.000825,60715.0,60714.0,3.39012325]
[1724155887413,0.000825,60715.0,60714.0,3.41812325]
[1724155887574,0.000825,60715.0,60714.0,3.41806514]
[1724155888178,0.000825,60715.0,60714.0,2.59983514]
[1724155888377,0.000825,60715.0,60714.0,2.81075732]
[1724155888580,0.000825,60715.0,60714.0,2.8208073]
[1724155888984,0.000825,60715.0,60714.0,2.584086]
[1724155889285,0.000825,60715.0,60714.0,2.53490987]
[1724155890286,0.100825,60715.0,60714.0,2.42230987]
[1724155890489,0.100825,60715.0,60714.0,2.53490987]
[1724155892892,0.10062675,60715.0,60714.0,2.53490987]
[1724155894246,0.00062675,60715.0,60714.0,2.53490987]
[1724155894854,0.00062675,60715.0,60714.0,2.61460987]
[1724155896309,0.00062675,60715.0,60714.0,2.63760987]
[1724155896505,0.00062675,60715.0,60714.0,2.98760987]
[1724155897158,0.00062675,60715.0,60714.0,3.36606018]
[1724155897330,0.00062675,60715.0,60714.0,3.52812895]
[1724155897535,0.00062675,60715.0,60714.0,3.42968832]
[1724155898415,0.00062675,60715.0,60714.0,3.41568832]
[1724155898604,0.00062675,60715.0,60714.0,3.40168832]
[1724155898804,0.00062675,60715.0,60714.0,3.41568832]
[1724155899004,0.00062675,60715.0,60714.0,3.42968832]
[1724155900189,0.00062675,60715.0,60714.0,3.42768832]
[1724155900997,0.00062675,60715.0,60714.0,3.42859582]
[1724155903617,0.00062675,60715.0,60714.0,3.31399582]
[1724155903819,0.00062675,60715.0,60714.0,3.42659582]
[1724155904234,0.00062675,60715.0,60714.0,2.98976582]
[1724155904425,0.00062675,60715.0,60714.0,3.10236582]
[1724155904711,0.00062675,60715.0,60714.0,3.0084702]
[1724155904927,0.00062675,60715.0,60714.0,3.1210702]
[1724155905173,0.00062675,60715.0,60714.0,3.1070702]
[1724155905378,0.00062675,60715.0,60714.0,2.99466582]
[1724155905553,0.00062675,60715.0,60714.0,2.90981737]
[1724155905753,0.00062675,60715.0,60714.0,3.02565493]
[1724155909425,0.00062675,60715.0,60714.0,3.14867158]
[1724155909928,0.00062675,60715.0,60714.0,3.14841458]
[1724155910248,0.00062675,60715.0,60714.0,3.14865663]
[1724155910942,0.00062675,60715.0,60714.0,3.02554423]
[1724155912464,0.00062675,60715.0,60714.0,3.14865663]
[1724155912683,0.00062675,60715.0,60714.0,3.41418663]
[1724155913133,0.00062675,60715.0,60714.0,3.15065663]
[1724155913338,0.00062675,60715.0,60714.0,3.41418663]
[1724155915189,0.00062675,60715.0,60714.0,3.41618663]
[1724155915802,0.00062675,60715.0,60714.0,3.41218663]
[1724155916655,0.00062675,60715.0,60714.0,3.55468663]
[1724155917084,0.00062675,60715.0,60714.0,3.55668663]
[1724155918375,0.00062675,60715.0,60714.0,3.52868663]
[1724155918643,0.00062675,60715.0,60714.0,3.54268663]
[1724155918891,0.00062675,60715.0,60714.0,3.43157423]
[1724155919112,0.00062675,60715.0,60714.0,3.43357423]
[1724155920420,0.00062675,60715.0,60714.0,3.69710423]
[1724155922282,0.00062675,60715.0,60714.0,3.43357423]
[1724155922486,0.00062675,60715.0,60714.0,3.58330911]
[1724155922895,0.00062675,60715.0,60714.0,3.43557423]
[1724155924331,0.00062675,60715.0,60714.0,3.69910423]
[1724155924696,1e-06,60719.0,60718.0,1.594821]
[1724155924874,1e-06,60719.0,60718.0,3.08438662]
[1724155925077,1e-06,60719.0,60718.0,3.34789962]
[1724155925298,0.00825,60720.0,60718.0,3.34789962]
[1724155925299,1e-06,60720.0,60719.0,1.594794]
[1724155925501,0.001,60732.0,60719.0,1.594794]
[1724155925502,0.001,60732.0,60731.0,0.462284]
[1724155925708,0.001,60732.0,60731.0,2.49103884]
[1724155925936,0.001,60732.0,60731.0,2.86403884]
[1724155926162,0.001,60732.0,60731.0,3.24009484]
[1724155926357,0.001,60732.0,60731.0,3.51868754]
[1724155926558,0.001,60732.0,60731.0,3.39582362]
[1724155926757,0.001,60732.0,60731.0,3.39382362]
[1724155927011,0.001,60732.0,60731.0,3.39582362]
[1724155927475,0.001,60732.0,60731.0,3.41510407]
[1724155927700,0.001,60732.0,60731.0,3.53989766]
[1724155927923,0.001,60732.0,60731.0,3.80334326]
[1724155928107,0.001,60732.0,60731.0,3.81334326]
[1724155928321,0.001,60732.0,60731.0,3.70454967]
[1724155928538,0.001,60732.0,60731.0,3.80273916]
[1724155928743,0.001,60732.0,60731.0,3.77673916]
[1724155928946,0.001,60732.0,60731.0,3.79273916]
[1724155929154,0.001,60732.0,60731.0,3.69454967]
[1724155929358,0.001,60732.0,60731.0,3.68054967]
[1724155929564,0.001,60732.0,60731.0,3.69454967]
[1724155929763,0.001,60732.0,60731.0,3.70854967]
[1724155930179,0.001,60732.0,60731.0,3.78215402]
[1724155931138,0.001,60732.0,60731.0,3.65688971]
[1724155931383,0.001,60732.0,60731.0,3.56928536]
[1724155931555,0.001,60732.0,60731.0,3.55528536]
[1724155931757,0.001,60732.0,60731.0,3.58328536]
[1724155932104,0.001,60732.0,60731.0,3.56928536]
[1724155932319,0.001,60732.0,60731.0,3.6043409]
[1724155932499,0.001,60732.0,60731.0,3.6183409]
[1724155932650,0.001,60732.0,60731.0,3.6283409]
[1724155933264,0.001,60732.0,60731.0,3.6143409]
[1724155933792,0.001,60732.0,60731.0,3.6183409]
[1724155934331,0.001,60732.0,60731.0,3.55528536]
[1724155934664,0.001,60732.0,60731.0,3.58328536]
[1724155934861,0.001,60732.0,60731.0,3.57928536]
[1724155935073,0.001825,60732.0,60731.0,3.57928536]
[1724155936695,0.001825,60732.0,60731.0,2.82232936]
[1724155936849,0.001825,60732.0,60731.0,2.53587336]
[1724155938034,0.001825,60732.0,60731.0,2.50787336]
[1724155938239,0.001825,60732.0,60731.0,2.53587336]
[1724155938443,0.001825,60732.0,60731.0,2.88587336]
[1724155940228,0.001825,60732.0,60731.0,2.88687336]
[1724155940481,0.001825,60732.0,60731.0,2.90987336]
[1724155941848,0.001825,60732.0,60731.0,3.25622936]
[1724155942042,0.001825,60732.0,60731.0,3.25822936]
[1724155943335,0.001825,60732.0,60731.0,3.31982936]
[1724155944118,0.001825,60732.0,60731.0,3.58328536]
[1724155944737,0.0002,60739.0,60738.0,1.529843]
[1724155944904,0.0002,60739.0,60738.0,2.79381789]
[1724155945117,0.0002,60739.0,60738.0,2.52939189]
[1724155945346,0.0002,60739.0,60738.0,2.85639189]
[1724155945703,0.0628,60739.0,60738.0,2.85639189]
[1724155945900,0.0628,60739.0,60738.0,2.87039189]
[1724155946101,0.0002,60739.0,60738.0,2.95089189]
[1724155946536,0.0002,60739.0,60738.0,2.96489189]
[1724155946694,0.0002,60739.0,60738.0,2.98989189]
[1724155946892,0.0002,60739.0,60738.0,2.99189189]
[1724155947099,0.0002,60739.0,60738.0,3.26318951]
[1724155947295,0.0002,60739.0,60738.0,3.26518951]
[1724155948317,0.0002,60739.0,60738.0,3.23818951]
[1724155948527,0.0002,60739.0,60738.0,3.40668951]
[1724155948728,0.0002,60739.0,60738.0,3.43468951]
[1724155948949,0.0002,60739.0,60738.0,3.42068951]
[1724155949143,0.0002,60739.0,60738.0,3.40668951]
[1724155949343,0.0002,60739.0,60738.0,3.42068951]
[1724155949953,0.0002,60739.0,60738.0,3.43468951]
[1724155950155,0.0002,60739.0,60738.0,3.42068951]
[1724155950586,0.0002,60759.0,60744.0,0.0799]
[1724155950793,0.0002,60759.0,60750.0,0.396061]
[1724155951020,0.0349,60756.0,60750.0,2.18918598]
[1724155951218,0.0349,60756.0,60750.0,2.53918598]
[1724155951422,0.0349,60756.0,60750.0,2.65355789]
[1724155951836,0.0349,60756.0,60750.0,2.66755789]
[1724155952243,0.005,60754.0,60750.0,2.66755789]
[1724155952447,0.005,60754.0,60750.0,2.65355789]
[1724155952854,0.005,60754.0,60750.0,2.68155789]
[1724155953063,0.005,60754.0,60750.0,2.69133742]
[1724155954709,0.005,60754.0,60750.0,2.66333742]
[1724155954918,0.005,60754.0,60750.0,2.69133742]
[1724155955119,0.005,60754.0,60753.0,1.185124]
[1724155955331,0.005,60754.0,60753.0,2.43022698]
[1724155955549,0.005,60754.0,60753.0,2.24912698]
[1724155955757,0.005,60754.0,60753.0,2.59912698]
[1724155956367,0.005,60754.0,60753.0,2.61312698]
[1724155956576,0.005,60754.0,60753.0,2.72749889]
[1724155956997,0.00480188,60754.0,60753.0,2.72749889]
[1724155957804,0.00480188,60754.0,60753.0,2.71349889]
[1724155958037,0.00480188,60754.0,60753.0,2.72749889]
[1724155958318,0.00480188,60754.0,60753.0,2.74149889]
[1724155958458,0.06730188,60754.0,60753.0,2.72749889]
[1724155958651,0.12053188,60776.0,60769.0,0.131645]
[1724155959031,0.263257,60778.0,60769.0,0.131645]
[1724155959032,0.13841259,60775.0,60769.0,0.131644]
[1724155959221,0.00677959,60775.0,60770.0,0.131643]
[1724155959620,0.131632,60776.0,60770.0,0.131643]
[1724155959849,0.00677755,60774.0,60769.0,0.0394944]
[1724155960049,0.00682497,60775.0,60770.0,0.18825284]
[1724155960180,0.00676572,60773.0,60770.0,0.131643]
[1724155960402,0.00676572,60773.0,60762.0,0.263322]
[1724155960403,0.00676769,60774.0,60764.0,0.263312]
[1724155960599,0.13839193,60772.0,60767.0,0.13165]
[1724155960824,0.00677558,60773.0,60767.0,0.13165]
[1724155961032,0.00677164,60771.0,60767.0,0.21651162]
[1724155961201,0.00677361,60772.0,60768.0,0.131647]
[1724155961400,0.00676967,60770.0,60768.0,0.131647]
[1724155961611,0.131636,60774.0,60768.0,0.131647]
[1724155961815,0.0473677,60769.0,60768.0,0.131647]
[1724155962014,0.0406,60769.0,60768.0,0.131647]
[1724155962210,0.0473677,60769.0,60768.0,0.131647]
[1724155962701,0.0473677,60769.0,60768.0,0.002]
[1724155963127,0.0473677,60769.0,60765.0,0.131654]
[1724155963599,0.0473677,60769.0,60768.0,0.003]
[1724155964119,0.1800137,60769.0,60768.0,0.003]
[1724155964335,0.4423057,60769.0,60768.0,0.003]
[1724155964559,0.1790137,60769.0,60768.0,0.003]
[1724155964895,0.1790137,60769.0,60763.0,0.131658]
[1724155964896,0.0406,60768.0,60763.0,0.131658]
[1724155965098,0.0406,60768.0,60763.0,0.1974903]
[1724155965305,0.0406,60766.0,60763.0,0.1974903]
[1724155965522,0.0406,60766.0,60763.0,0.131658]
[1724155965777,0.0406,60764.0,60762.0,0.263322]
[1724155965918,0.0406,60764.0,60763.0,0.131657]
[1724155966122,0.0406,60764.0,60763.0,0.132657]
[1724155966302,0.04736377,60764.0,60763.0,0.001]
[1724155966501,0.04736377,60764.0,60762.0,0.131661]
[1724155966958,0.04736377,60764.0,60763.0,0.003]
[1724155967134,0.04736377,60764.0,60763.0,0.134659]
[1724155967354,0.04736377,60764.0,60763.0,0.003]
[1724155967555,0.04736377,60764.0,60759.0,0.263334]
[1724155967761,0.04736377,60764.0,60763.0,0.131659]
[1724155969239,0.04736377,60764.0,60763.0,0.133659]
[1724155969462,0.04736377,60764.0,60763.0,0.138659]
[1724155970420,0.04736377,60764.0,60763.0,0.401977]
[1724155970659,0.0406,60764.0,60763.0,0.401977]
[1724155970870,0.0406,60764.0,60763.0,0.47600131]
[1724155971276,0.0406,60764.0,60763.0,0.73931931]
[1724155971885,0.59271067,60782.0,60770.0,0.39493]
[1724155971886,0.0406,60771.0,60770.0,0.39493]
[1724155972048,0.0406,60771.0,60770.0,0.88266875]
[1724155972249,0.0406,60771.0,60770.0,0.61938175]
[1724155972468,0.0406,60771.0,60770.0,0.88266875]
[1724155973172,0.0406,60771.0,60770.0,0.71866577]
[1724155973622,0.0406,60771.0,60770.0,0.45537877]
[1724155974208,0.0406,60771.0,60770.0,0.71866577]
[1724155974597,0.0406,60771.0,60770.0,0.72466577]
[1724155974803,0.0406,60771.0,60770.0,0.73266577]
[1724155975186,0.0406,60771.0,60770.0,0.46937877]
[1724155975630,0.0406,60771.0,60770.0,0.145643]
[1724155975857,0.0406,60771.0,60770.0,0.40893]
[1724155976058,0.04779217,60771.0,60770.0,0.145643]
[1724155976389,0.04778428,60771.0,60770.0,0.40893]
[1724155976534,0.04778428,60771.0,60770.0,0.7394405]
[1724155976738,0.0406,60771.0,60770.0,0.7394405]
[1724155977346,0.0406,60771.0,60770.0,0.145643]
[1724155977696,0.0406,60771.0,60770.0,0.139643]
[1724155977697,0.04780171,60771.0,60770.0,0.139643]
[1724155977867,0.04780171,60771.0,60770.0,0.141643]
[1724155978026,0.04780171,60771.0,60770.0,0.139643]
[1724155978435,0.04780171,60771.0,60770.0,0.131643]
[1724155978645,0.04780171,60771.0,60770.0,0.136643]
[1724155978889,0.04780171,60771.0,60770.0,0.39993]
[1724155979313,0.0406,60771.0,60770.0,0.4662525]
[1724155979713,0.04780171,60771.0,60770.0,0.4662525]
[1724155979918,0.04780171,60771.0,60770.0,0.4612525]
[1724155980122,0.04780171,60771.0,60770.0,0.39693]
[1724155980483,0.04780171,60771.0,60770.0,0.133643]
[1724155981528,0.04780171,60771.0,60770.0,0.39693]
[1724155983115,0.0406,60771.0,60770.0,0.39693]
[1724155983318,0.04778846,60771.0,60770.0,0.4629525]
[1724155983518,0.0406,60771.0,60770.0,0.7262395]
[1724155983694,0.0406,60776.0,60773.0,0.131635]
[1724155983900,0.0406,60776.0,60774.0,0.17792945]
[1724155983901,0.10294737,60775.0,60774.0,0.17792945]
[1724155984053,0.0406,60776.0,60775.0,0.394899]
[1724155985040,0.0436,60776.0,60775.0,0.394899]
[1724155985244,0.0436,60776.0,60775.0,0.001]
[1724155985453,0.156,60776.0,60775.0,0.001]
[1724155985689,0.25594453,60776.0,60775.0,0.001]
[1724155985906,0.25894453,60776.0,60775.0,0.001]
[1724155986116,0.25894453,60776.0,60773.0,0.131636]
[1724155986117,0.156,60776.0,60773.0,0.131636]
[1724155986574,0.153,60776.0,60774.0,0.131634]
[1724155987204,0.20222546,60776.0,60771.0,0.263283]
[1724155987403,0.1124,60773.0,60772.0,0.131639]
[1724155987921,0.1124,60773.0,60770.0,0.131642]
[1724155988121,0.1124,60773.0,60771.0,0.13164]
[1724155988438,0.1124,60773.0,60770.0,0.131643]
[1724155988637,0.1124,60773.0,60772.0,0.003]
[1724155989411,0.1124,60773.0,60770.0,0.131642]
[1724155989626,0.1124,60773.0,60771.0,0.131641]
[1724155989836,0.1124,60773.0,60768.0,0.263295]
[1724155990037,0.1124,60773.0,60770.0,0.131642]
[1724155990238,0.00720778,60772.0,60770.0,0.134642]
[1724155990774,0.00720778,60772.0,60771.0,0.131641]
[1724155990982,0.00720778,60772.0,60771.0,0.07288445]
[1724155991182,0.00720778,60772.0,60770.0,0.134642]
[1724155991384,0.00720778,60772.0,60770.0,0.131642]
[1724155991972,0.00720778,60772.0,60771.0,0.001]
[1724155992485,0.00720778,60772.0,60770.0,0.131642]
[1724155992884,0.00720778,60772.0,60771.0,0.131641]
[1724155993748,0.04780778,60772.0,60771.0,0.131641]
[1724155994096,0.09713614,60772.0,60765.0,0.263308]
[1724155994336,0.1124,60767.0,60766.0,0.231651]
[1724155994542,0.11960977,60767.0,60766.0,0.231652]
[1724155995173,0.16020977,60767.0,60763.0,0.0009075]
[1724155995374,0.244056,60764.0,60763.0,0.0009075]
[1724155995583,0.89248558,60764.0,60763.0,0.0009075]
[1724155995789,1.25645922,60764.0,60763.0,0.0009075]
[1724155996025,0.8944895,60764.0,60763.0,0.0009075]
[1724155996448,0.99317102,60764.0,60763.0,0.0009075]
[1724155997454,1.05483905,60764.0,60763.0,0.0009075]
[1724155997615,0.79152605,60764.0,60763.0,0.0009075]
[1724155997820,0.79122291,60764.0,60763.0,0.0009075]
[1724155998118,0.79322291,60764.0,60763.0,0.0009075]
[1724155998377,0.55718004,60764.0,60763.0,0.0009075]
[1724155998579,0.44478004,60764.0,60763.0,0.0009075]
[1724155998780,0.44578004,60764.0,60763.0,0.0009075]
[1724155999134,0.52276594,60764.0,60763.0,0.0019075]
[1724156001468,0.44878004,60764.0,60763.0,0.0019075]
[1724156003084,0.18546704,60764.0,60763.0,0.0019075]
[1724156004574,0.23476575,60764.0,60763.0,0.0019075]
[1724156005003,0.49807875,60764.0,60763.0,0.0019075]
[1724156005207,0.10310975,60764.0,60763.0,0.0019075]
[1724156005547,0.10310975,60764.0,60763.0,0.04970835]
[1724156005548,0.06250975,60764.0,60763.0,0.04970835]
[1724156006972,0.01321104,60764.0,60763.0,0.04970835]
[1724156008632,0.01321104,60764.0,60763.0,0.0019075]
[1724156009289,0.01321104,60764.0,60763.0,0.1335665]
[1724156009476,0.01321104,60764.0,60763.0,0.8022025]
[1724156009650,0.006,60764.0,60763.0,0.8022025]
[1724156010115,0.006825,60764.0,60763.0,0.8022025]
[1724156010330,0.006825,60764.0,60763.0,0.8834224]
[1724156010507,0.006825,60764.0,60763.0,1.1467404]
[1724156010917,0.003825,60764.0,60763.0,1.1457404]
[1724156011115,0.000825,60764.0,60763.0,1.1457404]
[1724156011389,0.003825,60764.0,60763.0,1.1457404]
[1724156011771,0.001825,60764.0,60763.0,1.1457404]
[1724156012350,0.000825,60764.0,60763.0,1.1457404]
[1724156012745,0.000825,60764.0,60763.0,1.1487404]
[1724156015812,0.000825,60764.0,60763.0,0.8854224]
[1724156017431,0.000825,60764.0,60763.0,1.31274338]
[1724156019903,0.131625,60779.0,60774.0,0.131633]
[1724156020134,0.00720496,60778.0,60775.0,0.1438]
[1724156020298,0.00720496,60778.0,60775.0,0.275432]
[1724156020511,0.1124,60778.0,60776.0,0.0538705]
[1724156020715,0.00719905,60777.0,60776.0,0.0538705]
[1724156021515,0.00719905,60777.0,60776.0,0.1855005]
[1724156021916,0.00719905,60777.0,60776.0,0.1865005]
[1724156022126,0.00719905,60777.0,60776.0,0.1855005]
[1724156022316,0.01019905,60777.0,60776.0,0.1865005]
[1724156023259,0.01219905,60777.0,60776.0,0.1875005]
[1724156024174,0.01219905,60777.0,60776.0,0.13363]
[1724156026075,0.01219905,60777.0,60776.0,0.002]
[1724156026718,0.14382705,60777.0,60776.0,0.002]
[1724156026918,0.01219905,60777.0,60776.0,0.002]
[1724156028469,0.14382705,60777.0,60776.0,0.002]
[1724156028673,0.14393395,60777.0,60776.0,0.002]
[1724156029941,0.40719095,60777.0,60776.0,0.002]
[1724156030456,0.01230595,60777.0,60776.0,0.002]
[1724156030660,0.12470595,60777.0,60776.0,0.01616981]
[1724156031224,0.12470595,60777.0,60776.0,0.002]
[1724156033113,0.01230595,60777.0,60776.0,0.002]
[1724156033289,0.12470595,60777.0,60776.0,0.002]
[1724156033825,0.12470595,60777.0,60776.0,0.1401]
[1724156034178,0.12470595,60777.0,60776.0,0.002]
[1724156034378,0.12470595,60777.0,60776.0,0.08184791]
[1724156034938,0.12470595,60777.0,60776.0,0.002]
[1724156035366,0.51959095,60777.0,60776.0,0.0029075]
[1724156035572,0.12470595,60777.0,60776.0,0.0029075]
[1724156035785,0.12470595,60777.0,60776.0,0.0801075]
[1724156036463,0.12470595,60777.0,60776.0,0.0029075]
[1724156039189,0.12470595,60777.0,60776.0,0.0862075]
[1724156040451,0.12470595,60777.0,60776.0,0.1504075]
[1724156042093,0.12470595,60777.0,60776.0,0.20495946]
[1724156044281,0.12470595,60777.0,60776.0,0.33658946]
[1724156045654,0.12470595,60777.0,60776.0,0.20495946]
[1724156045856,0.12470595,60777.0,60776.0,0.33658946]
[1724156047083,0.12470595,60777.0,60776.0,0.2820375]
[1724156049065,0.01230595,60777.0,60776.0,0.2820375]
[1724156049244,0.01230595,60777.0,60776.0,0.5452985]
[1724156050622,0.16453903,60777.0,60776.0,0.5452985]
[1724156052453,0.11524818,60777.0,60776.0,0.5452985]
[1724156052653,0.11524818,60777.0,60776.0,0.65250316]
[1724156052866,0.11524818,60777.0,60776.0,0.38924216]
[1724156053923,0.11324818,60777.0,60776.0,0.2810375]
[1724156054125,0.11324818,60777.0,60776.0,0.0029075]
[1724156054337,0.18918446,60777.0,60776.0,0.0029075]
[1724156054768,0.19018446,60777.0,60776.0,0.0029075]
[1724156055011,0.18918446,60777.0,60776.0,0.0019075]
[1724156055244,0.18618446,60777.0,60776.0,0.0019075]
[1724156055447,0.31639248,60777.0,60776.0,0.0029075]
[1724156055904,0.31698532,60777.0,60776.0,0.0029075]
[1724156056099,0.31798532,60777.0,60776.0,0.0029075]
[1724156056300,0.31698532,60777.0,60776.0,0.0029075]
[1724156057402,0.41573432,60777.0,60776.0,0.0029075]
[1724156058227,0.54736232,60777.0,60776.0,0.0029075]
[1724156058431,0.41573432,60777.0,60776.0,0.0029075]
[1724156059439,0.54736232,60777.0,60776.0,0.0029075]
[1724156060049,0.54716431,60777.0,60776.0,0.0029075]
[1724156060909,0.41553631,60777.0,60776.0,0.0029075]
[1724156061239,0.54716431,60777.0,60776.0,0.0029075]
[1724156062110,0.41553631,60777.0,60776.0,0.10679235]
[1724156063293,0.41553631,60777.0,60776.0,0.0787075]
[1724156063501,0.31678731,60777.0,60776.0,0.0787075]
[1724156067220,0.31637046,60777.0,60776.0,0.0787075]
[1724156069909,0.31650824,60777.0,60776.0,0.0787075]
[1724156071532,0.31650824,60777.0,60776.0,0.1401075]
[1724156072869,0.31650824,60777.0,60776.0,0.19360905]
[1724156073701,0.01210794,60777.0,60776.0,0.85176105]
[1724156073903,0.06150767,60777.0,60776.0,0.7982595]
[1724156074117,0.01210794,60777.0,60776.0,0.7982595]
[1724156074323,0.0051069,60777.0,60776.0,0.7982595]
[1724156074533,0.0001069,60777.0,60776.0,0.7962595]
[1724156074734,0.0001069,60777.0,60776.0,0.91445675]
[1724156074862,0.0051069,60777.0,60776.0,0.91545675]
[1724156075291,0.0021069,60777.0,60776.0,0.91445675]
[1724156075669,0.0041069,60777.0,60776.0,0.91445675]
[1724156075987,0.0001069,60777.0,60776.0,0.91445675]
[1724156076189,0.0021069,60777.0,60776.0,0.91445675]
[1724156077664,0.0001069,60777.0,60776.0,1.17871775]
[1724156077849,0.0011069,60777.0,60776.0,1.17871775]
[1724156078223,0.0001069,60777.0,60776.0,1.17771775]
[1724156078459,0.0001069,60777.0,60776.0,1.18071775]
[1724156079011,0.0001069,60777.0,60776.0,1.17771775]
[1724156079215,0.0011069,60777.0,60776.0,1.17871775]
[1724156079464,0.0001069,60777.0,60776.0,1.17871775]
[1724156080526,0.0001069,60777.0,60776.0,1.17771775]
[1724156080929,0.0001069,60777.0,60776.0,1.18271775]
[1724156081127,0.0001069,60777.0,60776.0,1.18471775]
[1724156085290,0.0001069,60777.0,60776.0,0.92145675]
[1724156085939,0.0009319,60777.0,60776.0,0.92145675]
[1724156094723,0.0009319,60777.0,60776.0,1.18471775]
[1724156097614,0.0009319,60777.0,60776.0,1.34872073]
[1724156105921,0.1133319,60777.0,60776.0,0.8032595]
[1724156106341,0.12031415,60777.0,60776.0,0.8032595]
[1724156106561,0.12031415,60777.0,60776.0,0.5399985]
[1724156106797,0.12031415,60777.0,60776.0,0.2767375]
[1724156107032,0.12031415,60777.0,60776.0,0.0079075]
[1724156107033,0.97854356,60777.0,60776.0,0.0079075]
[1724156107263,1.08349288,60777.0,60776.0,0.0079075]
[1724156107468,1.23077285,60777.0,60776.0,0.0079075]
[1724156107678,1.23077285,60777.0,60776.0,0.0029075]
[1724156107887,1.08349288,60777.0,60776.0,0.0029075]
[1724156108112,0.82023588,60777.0,60776.0,0.0009075]
[1724156108313,0.82223588,60777.0,60776.0,0.0019075]
[1724156108570,1.08849288,60777.0,60776.0,0.0019075]
[1724156108770,1.08649288,60777.0,60776.0,0.0009075]
[1724156109179,1.21172174,60777.0,60776.0,0.0019075]
[1724156109387,1.63798172,60777.0,60776.0,0.0019075]
[1724156109589,1.37472472,60777.0,60776.0,0.0019075]
[1724156109794,1.37372472,60777.0,60776.0,0.0029075]
[1724156110202,1.25049586,60777.0,60776.0,0.0029075]
[1724156110412,1.24749586,60777.0,60776.0,0.0019075]
[1724156110617,1.24649586,60777.0,60776.0,0.0019075]
[1724156110830,1.24749586,60777.0,60776.0,0.0019075]
[1724156111156,1.35604998,60777.0,60776.0,0.0019075]
[1724156111693,1.25749586,60777.0,60776.0,0.0019075]
[1724156111897,1.24449586,60777.0,60776.0,0.0009075]
[1724156112116,1.34303776,60777.0,60776.0,0.0009075]
[1724156112290,1.35703776,60777.0,60776.0,0.0019075]
[1724156112522,1.41806722,60777.0,60776.0,0.0019075]
[1724156112724,1.67773846,60777.0,60776.0,0.0019075]
[1724156113283,1.70073846,60777.0,60776.0,0.0009075]
[1724156113553,1.69773846,60777.0,60776.0,0.0009075]
[1724156113960,2.06099546,60777.0,60776.0,0.0009075]
[1724156114083,2.06099546,60777.0,60763.0,0.0009075]
[1724156114084,0.773682,60764.0,60763.0,0.0009075]
[1724156114291,1.23229757,60764.0,60763.0,0.0009075]
[1724156114490,1.50009569,60764.0,60763.0,0.0009075]
[1724156115126,1.62315453,60764.0,60763.0,0.0009075]
[1724156115321,1.50009569,60764.0,60763.0,0.0009075]
[1724156115524,1.56987316,60764.0,60763.0,0.0009075]
[1724156115779,1.58387316,60764.0,60763.0,0.0009075]
[1724156115967,1.29580135,60764.0,60763.0,0.0009075]
[1724156116217,1.2858299,60764.0,60763.0,0.0009075]
[1724156116390,1.22600088,60764.0,60763.0,0.0009075]
[1724156116595,1.24900088,60764.0,60763.0,0.0009075]
[1724156116806,1.29819752,60764.0,60763.0,0.0009075]
[1724156117137,1.26200088,60764.0,60763.0,0.0009075]
[1724156117553,1.42597966,60764.0,60763.0,0.0009075]
[1724156118351,1.42797966,60764.0,60763.0,0.0009075]
[1724156123335,1.26380285,60764.0,60763.0,0.0009075]
[1724156126302,1.26180285,60764.0,60763.0,0.0009075]
[1724156126549,0.43277387,60764.0,60763.0,0.0826075]
[1724156126793,0.0380029,60764.0,60763.0,0.0826075]
[1724156127036,0.0380029,60764.0,60763.0,0.19816765]
[1724156128066,0.0380029,60764.0,60763.0,0.32982665]
[1724156128332,0.0380029,60764.0,60763.0,0.85646265]
[1724156128566,0.013,60764.0,60763.0,0.8021025]
[1724156129034,0.019,60764.0,60763.0,0.8021025]
[1724156129272,0.006,60764.0,60763.0,0.8021025]
[1724156129507,0.01,60764.0,60763.0,0.8021025]
[1724156130012,0.01,60764.0,60763.0,0.90864585]
[1724156130664,0.01,60764.0,60763.0,0.8021025]
[1724156135155,0.01,60764.0,60763.0,1.0654205]
[1724156135565,0.01,60764.0,60763.0,1.0652625]
[1724156136222,0.000826,60776.0,60775.0,0.1411]
[1724156136599,0.01403979,60776.0,60775.0,0.1411]
[1724156137413,0.01603979,60776.0,60775.0,0.1411]
[1724156139049,0.02003979,60776.0,60775.0,0.1411]
[1724156139422,0.02003979,60776.0,60775.0,0.1385]
[1724156141156,0.0152097,60776.0,60775.0,0.1385]
[1724156142162,0.0152097,60776.0,60775.0,0.0771]
[1724156144489,0.0152097,60776.0,60775.0,0.076869]
[1724156144675,0.0152097,60776.0,60775.0,0.208502]
[1724156145319,0.0152097,60776.0,60775.0,0.273002]
[1724156145475,0.0152097,60776.0,60775.0,0.8794904]
[1724156146037,0.006826,60776.0,60775.0,0.799534]
[1724156151964,0.006826,60776.0,60775.0,0.536268]
[1724156152399,0.006826,60776.0,60775.0,0.272745]
[1724156152809,0.01523152,60776.0,60775.0,0.272745]
[1724156153845,0.01523152,60776.0,60772.0,0.195838]
[1724156154062,0.1124,60773.0,60772.0,0.195838]
[1724156154439,0.12079655,60773.0,60772.0,0.195838]
[1724156154657,0.12079655,60773.0,60772.0,0.0642]
[1724156155180,0.12079655,60773.0,60765.0,0.326406]
[1724156155181,0.131642,60771.0,60765.0,0.326406]
[1724156155411,0.002826,60776.0,60766.0,0.208752]
[1724156155412,0.1124,60767.0,60766.0,0.208752]
[1724156155621,0.25244411,60767.0,60766.0,0.0771]
[1724156155863,0.12079411,60767.0,60766.0,0.0771]
[1724156156303,0.25244411,60767.0,60766.0,0.0771]